fUSD/lending_fUSD_20240118
["ID","MTS","AMOUNT","RATE_DAILY","PERIOD"]
[312093367,1705613434412,-2234.4,0.00021773,2]
[312093368,1705613434420,-171.36,0.00021815,2]
[312093369,1705613434429,-160.65,0.0002182,2]
[312093370,1705613434439,-184.12,0.00021825,2]
[312093371,1705613434448,-159.81852167,0.00021861,2]
[312093372,1705613434458,-499.99,0.00021861,2]
[312093373,1705613434468,-10764.71,0.0002188,2]
[312093374,1705613434479,-540.74,0.00021887,2]
[312093375,1705613434491,-717.48,0.00021889,2]
[312093376,1705613434501,-250.0,0.000219,2]
[312093377,1705613434510,-163.4,0.00021916,2]
[312093378,1705613434519,-10000.0,0.00021918,2]
[312093379,1705613434528,-250.0,0.00021918,2]
[312093380,1705613434537,-161.46,0.0002192,2]
[312093381,1705613434546,-160.65,0.00021923,2]
[312093382,1705613434555,-159.81852167,0.00021976,2]
[312093383,1705613434564,-150.0,0.00022,2]
[312093384,1705613434573,-176.3,0.00022,2]
[312093385,1705613434584,-500.0,0.00022,2]
[312093386,1705613434593,-550.0,0.00022,3]
[312093387,1705613434602,-160.65,0.00022026,2]
[312093388,1705613434611,-159.81852167,0.00022092,2]
[312093389,1705613434620,-10581.0,0.00022092,2]
[312093390,1705613434630,-160.65,0.00022129,2]
[312093391,1705613434639,-159.81852167,0.00022207,2]
[312093392,1705613434648,-160.65,0.00022232,2]
[312093393,1705613434658,-163.4,0.00022276,2]
[312093394,1705613434667,-159.81852167,0.00022323,2]
[312093395,1705613434676,-160.65,0.00022335,2]
[312093396,1705613434685,-171.36,0.0002236,2]
[312093397,1705613434695,-160.65,0.00022438,2]
[312093398,1705613434703,-159.81852167,0.00022438,2]
[312093399,1705613434713,-532.14,0.00022445,2]
[312093400,1705613434721,-743.58,0.00022507,2]
[312093401,1705613434732,-160.65,0.00022541,2]
[312093402,1705613434741,-176.3,0.00022548,2]
[312093403,1705613434751,-500.0,0.00022548,2]
[312093404,1705613434760,-159.81852167,0.00022554,2]
[312093405,1705613434769,-163.4,0.00022635,2]
[312093406,1705613434780,-160.65,0.00022643,2]
[312093407,1705613434789,-159.81852167,0.00022669,2]
[312093408,1705613434799,-150.0,0.00022731,2]
[312093409,1705613434811,-150.0,0.00022734,2]
[312093410,1705613434821,-150.0,0.00022735,2]
[312093411,1705613434830,-150.0,0.00022737,2]
[312093412,1705613434840,-150.0,0.00022739,2]
[312093413,1705613434850,-150.0,0.0002274,2]
[312093414,1705613434859,-150.0,0.00022745,2]
[312093415,1705613434869,-150.0,0.00022746,2]
[312093416,1705613434879,-160.65,0.00022746,2]
[312093417,1705613434888,-300.0,0.00022752,2]
[312093418,1705613434897,-150.0,0.00022759,2]
[312093419,1705613434906,-150.0,0.0002276,2]
[312093420,1705613434915,-363.37339701,0.00022767,2]
[312093421,1705613434924,-155.0,0.00022769,2]
[312093422,1705613434934,-150.0,0.00022777,2]
[312093423,1705613434943,-300.0,0.0002278,2]
[312093424,1705613434952,-150.0,0.00022781,2]
[312093425,1705613434961,-300.0,0.00022782,2]
[312093426,1705613434970,-159.81852167,0.00022785,2]
[312093427,1705613434979,-390.22628193,0.00022794,2]
[312093428,1705613434988,-1500.0,0.00022794,2]
[312093429,1705613434997,-300.0,0.00022796,2]
[312093430,1705613435006,-150.0,0.000228,2]
[312093431,1705613435016,-740.7444,0.000228,2]
[312093432,1705613435025,-1500.0,0.00022815,2]
[312093433,1705613435034,-150.0,0.00022815,2]
[312093434,1705613435044,-200.0,0.00022815,2]
[312093435,1705613435053,-800.0,0.00022815,2]
[312093436,1705613435062,-200.0,0.00022816,2]
[312093437,1705613435071,-800.0,0.00022816,2]
[312093438,1705613435081,-200.0,0.00022816,2]
[312093439,1705613435090,-150.0,0.00022818,2]
[312093440,1705613435099,-150.0,0.00022819,2]
[312093441,1705613435108,-150.0,0.00022834,2]
[312093442,1705613435117,-300.0,0.00022837,2]
[312093443,1705613435126,-150.0,0.00022838,2]
[312093444,1705613435135,-460.58,0.00022838,2]
[312093445,1705613435145,-150.0,0.00022839,2]
[312093446,1705613435154,-150.0,0.0002284,2]
[312093447,1705613435163,-150.0,0.00022843,2]
[312093448,1705613435172,-490.01,0.00022848,2]
[312093449,1705613435181,-160.65,0.00022849,2]
[312093450,1705613435190,-150.0,0.0002285,2]
[312093451,1705613435201,-1500.0,0.00022858,2]
[312093452,1705613435211,-150.0,0.00022864,2]
[312093453,1705613435220,-150.0,0.00022867,2]
[312093454,1705613435231,-150.0,0.00022868,2]
[312093455,1705613435240,-150.0,0.00022869,2]
[312093456,1705613435249,-150.0,0.00022872,2]
[312093457,1705613435258,-300.0,0.00022876,2]
[312093458,1705613435267,-150.0,0.00022877,2]
[312093459,1705613435275,-300.0,0.00022883,2]
[312093460,1705613435284,-193.56298388,0.00022884,2]
[312093461,1705613435294,-150.0,0.00022886,2]
[312093462,1705613435303,-150.0,0.00022888,2]
[312093463,1705613435312,-150.0,0.00022892,2]
[312093464,1705613435321,-1230.57568454,0.00022893,2]
[312093465,1705613435330,-150.0,0.00022893,2]
[312093466,1705613435339,-8334.5419,0.00022898,2]
[312093467,1705613435348,-1907.4601,0.00022899,2]
[312093468,1705613435357,-485.674,0.00022899,2]
[312093469,1705613435367,-1000.0,0.00022899,2]
[312093470,1705613435376,-742.99594432,0.00022899,2]
[312093471,1705613435385,-193.74997088,0.00022899,2]
[312093472,1705613435394,-160.83536736,0.00022899,2]
[312093473,1705613435405,-287.93703842,0.00022899,2]
[312093474,1705613435414,-253.89162585,0.00022899,2]
[312093475,1705613435423,-572.14811589,0.00022899,2]
[312093476,1705613435432,-193.74997087,0.00022899,2]
[312093477,1705613435441,-742.99594428,0.00022899,2]
[312093478,1705613435450,-193.74997087,0.00022899,2]
[312093479,1705613435459,-193.74997087,0.00022899,2]
[312093480,1705613435468,-742.99594428,0.000229,2]
[312093481,1705613435478,-253.89162584,0.000229,2]
[312093482,1705613435489,-572.14811587,0.000229,2]
[312093483,1705613435499,-193.74997087,0.000229,2]
[312093484,1705613435508,-193.74997087,0.000229,2]
[312093485,1705613435517,-1720.4222,0.000229,2]
[312093486,1705613435526,-4633.5362,0.000229,2]
[312093487,1705613435536,-742.99594428,0.000229,2]
[312093488,1705613435546,-193.74997087,0.000229,2]
[312093489,1705613435555,-1000.0,0.000229,2]
[312093490,1705613435564,-4462.13260528,0.000229,2]
[312093491,1705613435578,-264.29118245,0.000229,2]
[312093492,1705613435588,-159.81852167,0.000229,2]
[312093493,1705613435597,-170.14773908,0.000229,2]
[312093494,1705613435606,-742.99594428,0.000229,2]
[312093495,1705613435616,-160.83536735,0.000229,2]
[312093496,1705613435625,-193.74997087,0.000229,2]
[312093497,1705613435634,-253.89162584,0.000229,2]
[312093498,1705613435644,-157.90120161,0.000229,2]
[312093499,1705613435653,-572.14811587,0.000229,2]
[312093500,1705613435663,-150.0,0.00022901,2]
[312093501,1705613435672,-139.41463402,0.00022905,2]
[312093502,1705613435684,-31.94536598,0.00022905,2]
[312093503,1705613435694,-300.0,0.00022907,2]
[312093504,1705613435704,-150.0,0.0002291,2]
[312093505,1705613435714,-150.0,0.00022917,2]
[312093506,1705613435723,-74.07401622,0.00022931,2]
[312093507,1705613435745,-75.92598378,0.00022931,2]
[312093508,1705613435755,-1500.0,0.00022934,2]
[312093509,1705613435764,-150.0,0.00022934,2]
[312093510,1705613435777,-150.0,0.00022936,2]
[312093511,1705613435787,-150.0,0.00022936,2]
[312093512,1705613435797,-150.0,0.00022937,2]
[312093513,1705613435809,-150.0,0.00022938,2]
[312093514,1705613435819,-150.0,0.00022944,2]
[312093515,1705613435828,-1611.0,0.00022949,2]
[312093516,1705613435838,-150.0,0.00022951,2]
[312093517,1705613435848,-156.40939445,0.00022951,2]
[312093518,1705613435858,-300.0,0.00022952,2]
[312093519,1705613435867,-150.0,0.00022953,2]
[312093520,1705613435878,-150.0,0.00022956,2]
[312093521,1705613435888,-150.0,0.00022956,2]
[312093522,1705613435898,-150.0,0.00022957,2]
[312093523,1705613435908,-150.0,0.00022962,2]
[312093524,1705613435917,-150.0,0.00022963,2]
[312093525,1705613435927,-150.0,0.00022969,2]
[312093526,1705613435936,-229.58564176,0.00022974,2]
[312093527,1705613435945,-150.0,0.00022974,2]
[312093528,1705613435954,-150.0,0.00022976,2]
[312093529,1705613435963,-150.0,0.00022977,2]
[312093530,1705613435974,-150.0,0.00022978,2]
[312093531,1705613435984,-150.0,0.00022979,2]
[312093532,1705613435993,-150.0,0.00022979,2]
[312093533,1705613436002,-150.0,0.0002298,2]
[312093534,1705613436011,-300.0,0.00022987,2]
[312093535,1705613436021,-150.0,0.00022987,2]
[312093536,1705613436031,-150.0,0.00022992,2]
[312093537,1705613436040,-163.4,0.00022994,2]
[312093538,1705613436050,-150.0,0.00022995,2]
[312093539,1705613436059,-277.87068648,0.00022997,2]
[312093540,1705613436069,-770.74162779,0.00022997,2]
[312093541,1705613436079,-252.93250862,0.00022998,2]
[312093542,1705613436088,-246.60959394,0.00022998,2]
[312093543,1705613436097,-523.64138656,0.00022998,2]
[312093544,1705613436110,-3805.09467816,0.00022998,2]
[312093545,1705613436119,-697.65794099,0.00022998,2]
[312093546,1705613436129,-160.05964323,0.00022998,2]
[312093547,1705613436138,-12298.83057596,0.00022998,2]
[312093548,1705613436147,-581.76600082,0.00022998,2]
[312093549,1705613436156,-636.96582265,0.00022998,2]
[312093550,1705613436165,-406.33597738,0.00022998,2]
[312093551,1705613436176,-1968.3261873,0.00022998,2]
[312093552,1705613436186,-15050.12819721,0.00022998,2]
[312093553,1705613436197,-1185.05303268,0.00022998,2]
[312093554,1705613436209,-1297.59092704,0.00022998,2]
[312093555,1705613436218,-764.1829097,0.00022998,2]
[312093556,1705613436228,-367.80860718,0.00022998,2]
[312093557,1705613436239,-241.80971217,0.00022998,2]
[312093558,1705613436249,-150.0,0.00022998,2]
[312093559,1705613436258,-155.0,0.00022999,2]
[312093560,1705613436267,-765.25852332,0.00022999,2]
[312093561,1705613436277,-203.29975543,0.00022999,2]
[312093562,1705613436286,-1359.04111405,0.00022999,2]
[312093563,1705613436296,-204.37295178,0.00022999,2]
[312093564,1705613436305,-2593.11290952,0.00022999,2]
[312093565,1705613436315,-226.02490761,0.00022999,2]
[312093566,1705613436324,-161.72866539,0.00022999,2]
[312093567,1705613436333,-14959.19523329,0.00022999,2]
[312093568,1705613436814,-14506.75996046,0.00022999,2]
[312093569,1705613436824,-150.84165777,0.00022999,2]
[312093570,1705613436834,-1683.55003985,0.00022999,2]
[312093571,1705613436843,-300.0,0.00022999,2]
[312093572,1705613436853,-300.0,0.00022999,2]
[312093573,1705613436862,-300.0,0.00022999,2]
[312093574,1705613436872,-300.0,0.00022999,2]
[312093575,1705613436883,-300.0,0.00022999,2]
[312093576,1705613436892,-300.0,0.00022999,2]
[312093577,1705613436901,-300.0,0.00022999,2]
[312093578,1705613436910,-300.0,0.00022999,2]
[312093579,1705613436919,-300.0,0.00022999,2]
[312093580,1705613436928,-300.0,0.00022999,2]
[312093581,1705613436938,-300.0,0.00022999,2]
[312093582,1705613436947,-300.0,0.00022999,2]
[312093583,1705613436956,-300.0,0.00022999,2]
[312093584,1705613436966,-300.0,0.00022999,2]
[312093585,1705613436976,-189.24943045,0.00022999,2]
[312093586,1705613436987,-500.0,0.00022999,2]
[312093587,1705613436995,-150.0,0.00022999,2]
[312093588,1705613437005,-150.0,0.00022999,2]
[312093589,1705613437014,-150.0,0.00022999,2]
[312093590,1705613437023,-1598.67757128,0.00023,2]
[312093591,1705613437032,-29880.40700419,0.00023,3]
[312093614,1705613439504,-1041.88400935,0.00022025,2]
[312093616,1705613439513,-200.88840204,0.000229,2]
[312093618,1705613439522,-398.47458991,0.000229,2]
[312093619,1705613439531,-787.10507685,0.00022999,2]
[312093622,1705613439542,-475.55745304,0.00022999,2]
[312093623,1705613439551,-2034.66080446,0.00023,3]
[312093626,1705613439562,-521.63355782,0.00023,3]
[312093629,1705613439585,-2986.70000001,0.00023,3]
[312093631,1705613439596,-1150.04056885,0.00023,3]
[312093633,1705613439607,-1391.03421706,0.00023,3]
[312093636,1705613439619,-268.26670555,0.00023,3]
[312093638,1705613439630,-500.00175707,0.00023,3]
[312093639,1705613439682,-20449.50000004,0.00023,3]
[312093640,1705613439693,-761.18262149,0.00023,3]
[312093641,1705613439741,-1180.1520019,0.00023,3]
[312093642,1705613439753,-1745120.71941167,0.00023,3]
[312093643,1705613439762,-502497.96972039,0.00023,2]
[312093644,1705613439771,-709.54,0.00023,2]
[312093645,1705613439782,-3573176.82540338,0.00023,2]
[312093646,1705613439793,-1541.09121438,0.00023,2]
[312093648,1705613439808,-1251.38715086,0.00023,2]
[312093667,1705613440826,-8225.27150014,0.00023,2]
[312093668,1705613440953,-5393.75573872,0.00023,2]
[312093669,1705613440965,-984.16748939,0.00023,2]
[312093670,1705613440993,-5369.09793115,0.00023,2]
[312093672,1705613441066,-2126.22263882,0.00023,2]
[312093673,1705613441078,-3413.56613347,0.00023,2]
[312093674,1705613441578,-4495278.7823746,0.00023,2]
[312093675,1705613441589,-236620.56625268,0.00023,2]
[312093676,1705613441601,-255.94965808,0.00023,2]
[312093743,1705613443420,-1032423.41645979,0.00023,2]
[312093746,1705613443431,-23884.12684704,0.00023,2]
[312093753,1705613443587,-18853.24916348,0.00023,2]
[312093754,1705613443598,-21590.57143064,0.00023,2]
[312093755,1705613443610,-3560.0908648,0.00023,2]
[312093778,1705613446369,-550.0,0.00022,3]
[312093779,1705613446378,-946.99689742,0.00022999,2]
[312093780,1705613446388,-14574.90166878,0.00023,2]
[312093781,1705613446446,-318.3726,0.00023,2]
[312093782,1705613446567,-1915.0,0.00023,2]
[312093783,1705613446634,-975.05731553,0.00023,2]
[312093788,1705613523047,445.90233337,0.00020466,2]
[312093789,1705613800845,162.44,0.00021496,10]
[312093790,1705613807178,726.45,0.00021497,2]
[312093791,1705613831984,2000.0,0.00021499,2]
[312093792,1705613839934,534.07,0.00019581,2]
[312093865,1705613872743,201.9,0.00021507,2]
[312093866,1705613940038,232.05,0.00021506,2]
[312093867,1705613999127,377.16,0.0002151,2]
[312093868,1705614004017,204.0,0.00021097,2]
[312093869,1705614023366,200.0,0.00021528,2]
[312093870,1705614073340,250.0,0.00021449,2]
[312093871,1705614085727,179.0,0.00021455,2]
[312093872,1705614117307,280.62392143,0.000216,2]
[312093873,1705614127565,471.16,0.0002145,2]
[312093874,1705614175815,161.37,0.00021467,2]
[312093875,1705614206588,7131.09,0.00021457,2]
[312093876,1705614266384,1105.5,0.0002151,2]
[312093877,1705614284194,200.0,0.00021449,2]
[312093878,1705614298178,228.37,0.00021465,2]
[312093879,1705614304074,9961.37,0.00025,30]
[312093881,1705614360868,678.02,0.00021454,2]
[312093882,1705614380292,533.61,0.00019536,2]
[312093892,1705614523782,167.1,0.0002143,2]
[312093893,1705614567160,623.07,0.00021418,2]
[312093947,1705614631505,-327.16185942,0.00021634,2]
[312093948,1705614631515,-715.53,0.00021635,2]
[312093949,1705614631525,-718.21,0.00021635,2]
[312093950,1705614631534,-727.92,0.00021635,2]
[312093951,1705614631547,-559.29,0.00021644,2]
[312093952,1705614631557,-152.03,0.00021668,2]
[312093953,1705614631567,-150.0,0.00021671,2]
[312093954,1705614631577,-152.92,0.00021681,2]
[312093955,1705614631586,-732.8,0.00021695,2]
[312093956,1705614631596,-710.83,0.00021705,2]
[312093957,1705614631605,-152.03,0.00021735,2]
[312093958,1705614631614,-150.0,0.00021777,2]
[312093959,1705614631624,-163.25,0.00021778,2]
[312093960,1705614631633,-9999.99,0.00021778,2]
[312093961,1705614631642,-1655.97,0.00021778,2]
[312093962,1705614631652,-9999.99,0.00021778,2]
[312093963,1705614631661,-533.61,0.000218,2]
[312093964,1705614631670,-152.03,0.00021801,2]
[312093965,1705614631679,-161.37,0.00021824,2]
[312093966,1705614631690,-204.0,0.00021865,2]
[312093967,1705614631699,-152.03,0.00021868,2]
[312093968,1705614631709,-150.99,0.00021877,2]
[312093969,1705614631718,-250.0,0.00021918,2]
[312093970,1705614631728,-3620.7,0.00021918,2]
[312093971,1705614631738,-730.55,0.00021924,2]
[312093972,1705614631747,-152.03,0.00021934,2]
[312093973,1705614631757,-736.54,0.0002199,2]
[312093974,1705614631766,-176.3,0.00022,2]
[312093975,1705614631775,-500.0,0.00022,2]
[312093976,1705614631785,-1041.88400935,0.00022,2]
[312093977,1705614631794,-152.03,0.00022,2]
[312093978,1705614631805,-177.57,0.00022025,2]
[312093981,1705614631815,-722.48,0.00022049,2]
[312093982,1705614631824,-726.22,0.00022049,2]
[312093983,1705614631833,-169.44,0.0002205,2]
[312093984,1705614631842,-152.92,0.00022052,2]
[312093985,1705614631851,-152.03,0.00022067,2]
[312093986,1705614631860,-152.03,0.00022133,2]
[312093987,1705614631870,-161.37,0.00022182,2]
[312093988,1705614631879,-152.03,0.000222,2]
[312093989,1705614631889,-152.03,0.00022266,2]
[312093990,1705614631898,-152.03,0.00022333,2]
[312093991,1705614631907,-152.03,0.00022399,2]
[312093992,1705614631917,-152.92,0.00022423,2]
[312093993,1705614631926,-678.02,0.00022432,2]
[312093994,1705614631935,-559.29,0.00022445,2]
[312093995,1705614631944,-724.03,0.00022451,2]
[312093996,1705614631954,-152.03,0.00022465,2]
[312093997,1705614631963,-152.03,0.00022532,2]
[312093998,1705614631973,-161.37,0.0002254,2]
[312093999,1705614631982,-3867.0,0.00022542,2]
[312094000,1705614631991,-176.3,0.00022548,2]
[312094001,1705614632001,-500.0,0.00022548,2]
[312094002,1705614632010,-163.25,0.00022594,2]
[312094003,1705614632020,-152.03,0.00022598,2]
[312094004,1705614632029,-1000.0,0.000226,2]
[312094005,1705614632039,-730.9,0.0002264,2]
[312094006,1705614632048,-152.03,0.00022665,2]
[312094007,1705614632058,-152.03,0.00022731,2]
[312094008,1705614632067,-723.84,0.00022764,2]
[312094009,1705614632077,-721.35,0.00022765,2]
[312094010,1705614632086,-711.11,0.00022765,2]
[312094011,1705614632096,-156.0,0.00022766,2]
[312094012,1705614632105,-282.102,0.00022766,2]
[312094013,1705614632114,-150.0,0.00022788,2]
[312094014,1705614632124,-152.92,0.00022794,2]
[312094015,1705614632134,-152.03,0.00022797,2]
[312094016,1705614632147,-200.0,0.00022816,2]
[312094017,1705614632157,-800.0,0.00022816,2]
[312094018,1705614632166,-200.0,0.00022816,2]
[312094019,1705614632175,-714.43,0.00022897,2]
[312094020,1705614632186,-161.37,0.00022898,2]
[312094021,1705614632195,-1000.0,0.00022898,2]
[312094022,1705614632204,-795.882,0.00022898,2]
[312094023,1705614632213,-817.43473583,0.00022898,2]
[312094024,1705614632223,-1000.0,0.00022898,2]
[312094025,1705614632233,-5330.5474,0.000229,2]
[312094026,1705614632242,-3106.5076,0.000229,2]
[312094027,1705614632252,-296.3931,0.000229,2]
[312094028,1705614632261,-426.11299958,0.000229,2]
[312094029,1705614632271,-172.49151436,0.000229,2]
[312094030,1705614632280,-495.33062954,0.000229,2]
[312094031,1705614632290,-5032.21548303,0.000229,6]
[312094032,1705614632300,-284.64078375,0.0002299,2]
[312094033,1705614632310,-650.46814,0.00022994,3]
[312094034,1705614632319,-428.57501499,0.00022997,2]
[312094035,1705614632329,-500.0,0.00022997,2]
[312094036,1705614632338,-180772.44255265,0.00022998,2]
[312094037,1705614632364,-2059.9116,0.00022998,2]
[312094038,1705614632375,-358.97557567,0.00022998,2]
[312094039,1705614632387,-335.00350038,0.00022998,2]
[312094040,1705614632402,-551.1613,0.00022998,2]
[312094041,1705614632413,-1463.55396328,0.00022998,2]
[312094042,1705614632425,-267.96954897,0.00022998,2]
[312094043,1705614632437,-271.49471219,0.00022998,2]
[312094044,1705614632464,-562.34159793,0.00022998,2]
[312094045,1705614632489,-3463.34807112,0.00022998,2]
[312094046,1705614632500,-1069.12322619,0.00022998,2]
[312094047,1705614632515,-1400.0,0.00022998,2]
[312094048,1705614632581,-287.75294492,0.00022998,2]
[312094049,1705614632593,-737.50852455,0.00022998,2]
[312094050,1705614632604,-2933.54519977,0.00022998,2]
[312094051,1705614632615,-2173.23627383,0.00022998,2]
[312094052,1705614632626,-12471.0,0.00022998,2]
[312094053,1705614632638,-219762.26511599,0.00022998,2]
[312094071,1705614637553,-341.50155484,0.00022998,2]
[312094072,1705614637588,163.03627426,0.00021568,2]
[312094073,1705614638956,-571.79463963,0.00022998,2]
[312094074,1705614638972,-37745.69541169,0.00022998,2]
[312094075,1705614639068,-2179.27830722,0.00022998,2]
[312094076,1705614639078,-614.976,0.00022998,2]
[312094077,1705614639088,-215.06569846,0.00022998,2]
[312094078,1705614639097,-155.0,0.00022999,2]
[312094079,1705614639108,-190.90927065,0.00022999,2]
[312094080,1705614639117,-710.24767306,0.00022999,2]
[312094081,1705614639126,-1451.0,0.00022999,2]
[312094082,1705614639136,-56886.66527966,0.00023,3]
[312094083,1705614639149,-8536.81079373,0.00023,3]
[312094084,1705614639163,-8182.79999999,0.00023,3]
[312094085,1705614639174,-940.24658777,0.00023,3]
[312094086,1705614639185,-403.09841461,0.00023,3]
[312094088,1705614639205,-4060.63298702,0.00023,3]
[312094090,1705614639217,-1699971.72245579,0.00023,3]
[312094092,1705614639225,-4121533.33207965,0.00023,2]
[312094129,1705614640260,-991.41570072,0.00023,2]
[312094130,1705614640272,-1028.12155936,0.00023,2]
[312094131,1705614640284,-411.71,0.00023,2]
[312094178,1705614642546,-3044.37066354,0.00023,2]
[312094183,1705614642559,-1200.89200009,0.00023,2]
[312094208,1705614642644,-163.03627422,0.00021758,2]
[312094211,1705614642654,-231.95160019,0.00023,2]
[312094218,1705614642712,-532.6857548,0.00022999,2]
[312094220,1705614642721,-384.3770716,0.00023,2]
[312094221,1705614642828,-1096.05882119,0.00023,2]
[312094222,1705614642839,-307.48877346,0.00023,2]
[312094223,1705614642851,-10287.67699581,0.00023,2]
[312094235,1705614645650,-307.80010077,0.00022999,2]
[312094236,1705614645715,-47.09059689,0.00022999,2]
[312094237,1705614645725,-1751.83171786,0.00023,2]
[312094238,1705614645739,-379.80612017,0.00023,2]
[312094239,1705614645752,-5781.88633881,0.00023,2]
[312094240,1705614645766,-545.69051462,0.00023,2]
[312094241,1705614645791,-11285.74590525,0.00023,2]
[312094242,1705614645803,-1129.3009947,0.00023,2]
[312094243,1705614645850,-16446.4,0.00023,2]
[312094244,1705614645869,-476.18337935,0.00023,2]
[312094245,1705614645881,-1114.0550041,0.00023,2]
[312094246,1705614645892,-1231.6,0.00023,2]
[312094251,1705614828935,6653.0,0.0002,2]
[312094252,1705614851168,1353.3043,0.00020083,2]
[312094253,1705614867742,535.96,0.00019921,2]
[312094254,1705615000569,501.54,0.00021577,2]
[312094255,1705615020420,384.65105166,0.000216,2]
[312094256,1705615024269,2306.97835772,0.000216,2]
[312094257,1705615034852,-250.0,0.00021601,2]
[312094258,1705615034877,-2947.31448158,0.00021635,2]
[312094259,1705615034902,-200.0,0.00021636,2]
[312094260,1705615034927,-166.95,0.00021636,2]
[312094261,1705615034951,-324.39,0.00021636,2]
[312094262,1705615034978,-277.54,0.00021738,2]
[312094263,1705615035004,-657.13,0.00021792,2]
[312094264,1705615035029,-150.0,0.00021917,2]
[312094265,1705615035055,-300.0,0.00021917,2]
[312094266,1705615035082,-250.0,0.00021918,2]
[312094267,1705615035110,-6378.7,0.00021918,2]
[312094268,1705615035139,-163.03627422,0.00021949,2]
[312094269,1705615035166,-176.13,0.00021949,2]
[312094270,1705615035192,-200.0,0.00021949,2]
[312094271,1705615035217,-550.0,0.00022,3]
[312094272,1705615035243,-150.0,0.00022,2]
[312094273,1705615035269,-176.3,0.00022,2]
[312094274,1705615035298,-735.20245442,0.00022,2]
[312094275,1705615035324,-1041.88400935,0.00022,2]
[312094276,1705615035349,-499.99,0.00022,2]
[312094277,1705615073328,467.25,0.00021853,2]
[312094278,1705615084167,204.0,0.00021681,2]
[312094279,1705615095816,164.56,0.00021834,2]
[312094280,1705615106962,-3144.72559597,0.00022029,2]
[312094281,1705615106988,-2000.0,0.0002203,2]
[312094282,1705615107013,-1519.83583226,0.00022078,2]
[312094283,1705615107037,-281.12333438,0.00022091,2]
[312094284,1705615107063,-163.03627422,0.00022139,2]
[312094285,1705615107088,-2705.0,0.00022173,2]
[312094286,1705615107113,-23755.9017436,0.00022185,2]
[312094287,1705615120326,-500.0,0.0002189,2]
[312094288,1705615127810,2885.39,0.00021889,2]
[312094289,1705615135822,-1041.88400935,0.00022028,2]
[312094290,1705615135850,-535.96,0.00022185,2]
[312094291,1705615135877,-3195.13608794,0.00022185,2]
[312094292,1705615135907,-164.56,0.00022197,2]
[312094293,1705615135934,-750.0,0.00022202,2]
[312094294,1705615140309,9148.3493,0.00022217,2]
[312094295,1705615144263,204.0,0.00021681,2]
[312094296,1705615158688,3195.13608794,0.00022185,2]
[312094297,1705615173791,204.0,0.00021681,2]
[312094298,1705615174687,3195.13608794,0.00022185,2]
[312094299,1705615186370,198.94,0.00022184,2]
[312094300,1705615190940,3195.13608794,0.00022185,2]
[312094301,1705615204702,3195.13608794,0.00022185,2]
[312094302,1705615222678,3195.13608794,0.00022185,2]
[312094303,1705615235712,814.51,0.00021924,2]
[312094304,1705615244686,3195.13608794,0.00022185,2]
[312094305,1705615252829,-300.0,0.00022313,2]
[312094306,1705615252855,-150.0,0.00022313,2]
[312094307,1705615252882,-21874.37847699,0.00022314,2]
[312094308,1705615252908,-36151.85232414,0.00022315,2]
[312094309,1705615252936,-529.15035393,0.00022315,2]
[312094310,1705615252963,-4634.76514214,0.00022315,2]
[312094311,1705615252989,-363.95030567,0.00022315,2]
[312094312,1705615253016,-383.87104154,0.00022315,2]